[Event "Early-Titled-Tuesday-Blitz-March-12-2024"]
[Site "Chess.com"]
[Date "2024.03.12"]
[Round "6"]
[White "cthulhuuu"]
[Black "imdvb6307"]
[Result "1-0"]
[WhiteElo "2398"]
[BlackElo "2480"]
[TimeControl "180+1"]
[EndTime "9:06:19 PDT"]
[Termination "cthulhuuu won by resignation"]

1. e4 {[%clk 0:02:59.9]} 1... Nc6 {[%clk 0:02:59.5]} 2. Nf3 {[%clk 0:03:00.1]}
2... d6 {[%clk 0:02:59.8]} 3. d4 {[%clk 0:03:00.4]} 3... Nf6 {[%clk 0:03:00]} 4.
Nc3 {[%clk 0:03:00.1]} 4... Bg4 {[%clk 0:02:59.8]} 5. Be3 {[%clk 0:02:59.4]}
5... e6 {[%clk 0:02:59.7]} 6. h3 {[%clk 0:02:58.4]} 6... Bxf3 {[%clk 0:02:59.3]}
7. Qxf3 {[%clk 0:02:58.6]} 7... d5 {[%clk 0:02:59.7]} 8. O-O-O {[%clk
0:02:56.4]} 8... Bb4 {[%clk 0:02:43.1]} 9. exd5 {[%clk 0:02:48.1]} 9... Nxd5
{[%clk 0:02:41.3]} 10. Nxd5 {[%clk 0:02:47.1]} 10... Qxd5 {[%clk 0:02:40.6]} 11.
Qxd5 {[%clk 0:02:08]} 11... exd5 {[%clk 0:02:39.7]} 12. Bf4 {[%clk 0:02:08.5]}
12... O-O-O {[%clk 0:02:36.9]} 13. c3 {[%clk 0:02:09]} 13... Bd6 {[%clk
0:02:36.9]} 14. Bxd6 {[%clk 0:02:08.8]} 14... Rxd6 {[%clk 0:02:37.1]} 15. Bd3
{[%clk 0:02:07.7]} 15... Re8 {[%clk 0:02:28.4]} 16. Rde1 {[%clk 0:02:07.4]}
16... Kd8 {[%clk 0:02:23.6]} 17. Rxe8+ {[%clk 0:02:02.6]} 17... Kxe8 {[%clk
0:02:23.5]} 18. Re1+ {[%clk 0:02:02.8]} 18... Kf8 {[%clk 0:02:22.6]} 19. f4
{[%clk 0:01:59.3]} 19... h5 {[%clk 0:02:13.8]} 20. h4 {[%clk 0:01:53.4]} 20...
Ne7 {[%clk 0:02:08.5]} 21. g3 {[%clk 0:01:44.9]} 21... Ng8 {[%clk 0:02:07.3]}
22. Re5 {[%clk 0:01:43.6]} 22... Nf6 {[%clk 0:02:06.7]} 23. Kd2 {[%clk
0:01:38.2]} 23... c6 {[%clk 0:02:03.3]} 24. b4 {[%clk 0:01:35.4]} 24... g6
{[%clk 0:01:56.3]} 25. a4 {[%clk 0:01:33.2]} 25... Rd8 {[%clk 0:01:49.6]} 26. b5
{[%clk 0:01:27.2]} 26... Nd7 {[%clk 0:01:48.8]} 27. Rg5 {[%clk 0:01:22.8]} 27...
Re8 {[%clk 0:01:34.1]} 28. f5 {[%clk 0:01:16]} 28... Nf6 {[%clk 0:01:29]} 29.
fxg6 {[%clk 0:01:14.2]} 29... fxg6 {[%clk 0:01:28.9]} 30. Rxg6 {[%clk
0:01:12.3]} 30... Kf7 {[%clk 0:01:28.6]} 31. Rg5 {[%clk 0:01:04.5]} 31... Rg8
{[%clk 0:01:21.1]} 32. Rxg8 {[%clk 0:01:01.4]} 32... Kxg8 {[%clk 0:01:07.2]} 33.
bxc6 {[%clk 0:01:02.3]} 33... bxc6 {[%clk 0:01:07.1]} 34. Ke3 {[%clk 0:01:02.9]}
34... Kg7 {[%clk 0:00:57.7]} 35. Kf4 {[%clk 0:01:02.6]} 35... Nd7 {[%clk
0:00:57.9]} 36. a5 {[%clk 0:00:57.3]} 36... Kf6 {[%clk 0:00:54]} 37. Be2 {[%clk
0:00:52.3]} 37... Kg6 {[%clk 0:00:52.9]} 38. Bd1 {[%clk 0:00:50.2]} 38... Nf6
{[%clk 0:00:47.8]} 39. Bc2+ {[%clk 0:00:50.5]} 39... Kf7 {[%clk 0:00:45]} 40.
Kg5 {[%clk 0:00:46.8]} 40... Ke6 {[%clk 0:00:34.4]} 41. Bf5+ {[%clk 0:00:43.9]}
41... Ke7 {[%clk 0:00:31]} 42. Bg6 {[%clk 0:00:44.2]} 42... Ke6 {[%clk
0:00:27.6]} 43. Bf5+ {[%clk 0:00:42.3]} 43... Ke7 {[%clk 0:00:27]} 44. Kf4
{[%clk 0:00:43]} 44... Kd6 {[%clk 0:00:22.4]} 45. Bg6 {[%clk 0:00:40.3]} 45...
Ke6 {[%clk 0:00:21.1]} 46. Bf5+ {[%clk 0:00:38.6]} 46... Kd6 {[%clk 0:00:20.8]}
47. g4 {[%clk 0:00:38.9]} 47... hxg4 {[%clk 0:00:20]} 48. Bxg4 {[%clk
0:00:39.2]} 48... c5 {[%clk 0:00:20]} 49. h5 {[%clk 0:00:37]} 49... cxd4 {[%clk
0:00:19.1]} 50. cxd4 {[%clk 0:00:37.9]} 50... Ng8 {[%clk 0:00:15.4]} 51. Kg5
{[%clk 0:00:37.6]} 51... Ke7 {[%clk 0:00:15.6]} 52. h6 {[%clk 0:00:37.4]} 52...
Kf7 {[%clk 0:00:16]} 53. h7 {[%clk 0:00:34.7]} 53... Kg7 {[%clk 0:00:16.3]} 54.
hxg8=Q+ {[%clk 0:00:35]} 54... Kxg8 {[%clk 0:00:16.6]} 55. Be6+ {[%clk
0:00:35.1]} 55... Kf8 {[%clk 0:00:16.9]} 56. Bxd5 {[%clk 0:00:35.6]} 56... Ke7
{[%clk 0:00:17.2]} 57. Be4 {[%clk 0:00:35.6]} 57... Kd6 {[%clk 0:00:17.2]} 58.
Kf6 {[%clk 0:00:36.1]} 58... Kd7 {[%clk 0:00:12.5]} 59. Ke5 {[%clk 0:00:35.1]}
1-0

[Event "Early-Titled-Tuesday-Blitz-March-12-2024"]
[Site "Chess.com"]
[Date "2024.03.12"]
[Round "6"]
[White "BilicVladimir"]
[Black "stollenmonster"]
[Result "1-0"]
[WhiteElo "2675"]
[BlackElo "2852"]
[TimeControl "180+1"]
[EndTime "9:06:21 PDT"]
[Termination "BilicVladimir won by checkmate"]

1. e4 {[%clk 0:03:00.9]} 1... c5 {[%clk 0:02:22]} 2. Nf3 {[%clk 0:02:57.1]} 2...
Nf6 {[%clk 0:02:20.3]} 3. e5 {[%clk 0:02:56.4]} 3... Nd5 {[%clk 0:02:20.5]} 4.
c4 {[%clk 0:02:56.3]} 4... Nc7 {[%clk 0:02:20.2]} 5. d4 {[%clk 0:02:55.1]} 5...
cxd4 {[%clk 0:02:21.1]} 6. Nxd4 {[%clk 0:02:54.8]} 6... Nc6 {[%clk 0:02:21.6]}
7. Nxc6 {[%clk 0:02:54.1]} 7... bxc6 {[%clk 0:02:22.5]} 8. Nc3 {[%clk
0:02:51.9]} 8... g6 {[%clk 0:02:22.4]} 9. f4 {[%clk 0:02:50.9]} 9... Bg7 {[%clk
0:02:22.6]} 10. Be3 {[%clk 0:02:50.9]} 10... O-O {[%clk 0:02:21.2]} 11. Qd2
{[%clk 0:02:51.4]} 11... d6 {[%clk 0:02:21.1]} 12. exd6 {[%clk 0:02:50.9]} 12...
exd6 {[%clk 0:02:20.8]} 13. Be2 {[%clk 0:02:47.3]} 13... Re8 {[%clk 0:02:11.1]}
14. Bd4 {[%clk 0:02:45.7]} 14... Bh6 {[%clk 0:02:03.5]} 15. O-O {[%clk
0:02:41.3]} 15... d5 {[%clk 0:02:00.7]} 16. cxd5 {[%clk 0:02:38.9]} 16... Nxd5
{[%clk 0:02:00.5]} 17. Nxd5 {[%clk 0:02:37.8]} 17... cxd5 {[%clk 0:02:00.2]} 18.
Bf3 {[%clk 0:02:30]} 18... Bf5 {[%clk 0:01:58.3]} 19. Rfe1 {[%clk 0:02:28.9]}
19... Be4 {[%clk 0:01:58.7]} 20. Bxe4 {[%clk 0:02:26.5]} 20... dxe4 {[%clk
0:01:53.8]} 21. Rad1 {[%clk 0:02:25.1]} 21... a5 {[%clk 0:01:32.2]} 22. Qe3
{[%clk 0:02:19.9]} 22... Qh4 {[%clk 0:01:09.6]} 23. g3 {[%clk 0:02:17.6]} 23...
Qg4 {[%clk 0:01:09.7]} 24. Bc3 {[%clk 0:02:13.7]} 24... Bg7 {[%clk 0:00:57.7]}
25. Bxg7 {[%clk 0:02:12.7]} 25... Kxg7 {[%clk 0:00:58.6]} 26. Rd4 {[%clk
0:02:09.9]} 26... Rac8 {[%clk 0:00:39.5]} 27. Rxe4 {[%clk 0:02:01]} 27... Red8
{[%clk 0:00:39.5]} 28. Qe2 {[%clk 0:01:52.8]} 28... Qf5 {[%clk 0:00:37.4]} 29.
b3 {[%clk 0:01:46]} 29... h5 {[%clk 0:00:32.4]} 30. Re5 {[%clk 0:01:42.1]} 30...
Qf6 {[%clk 0:00:31.8]} 31. Qe3 {[%clk 0:01:27.3]} 31... Rc2 {[%clk 0:00:28.9]}
32. Re2 {[%clk 0:01:27.4]} 32... Rd1+ {[%clk 0:00:26.7]} 33. Kf2 {[%clk
0:01:25.6]} 33... Rcc1 {[%clk 0:00:26.7]} 34. Kg2 {[%clk 0:01:11.3]} 34... h4
{[%clk 0:00:24.3]} 35. Rg5 {[%clk 0:01:01.8]} 35... hxg3 {[%clk 0:00:21.3]} 36.
hxg3 {[%clk 0:00:59]} 36... Qc6+ {[%clk 0:00:17.9]} 37. Qe4 {[%clk 0:00:56.6]}
37... Rg1+ {[%clk 0:00:17.5]} 38. Kh2 {[%clk 0:00:50]} 38... Rh1+ {[%clk
0:00:16.3]} 39. Kg2 {[%clk 0:00:50.3]} 39... Rcg1+ {[%clk 0:00:16.9]} 40. Kf2
{[%clk 0:00:48.6]} 40... Qb6+ {[%clk 0:00:15.8]} 41. Qe3 {[%clk 0:00:43.3]}
41... Rf1+ {[%clk 0:00:13.6]} 42. Kg2 {[%clk 0:00:43.2]} 42... Rhg1+ {[%clk
0:00:13.1]} 43. Kh2 {[%clk 0:00:40.9]} 43... Rh1+ {[%clk 0:00:13.1]} 44. Kg2
{[%clk 0:00:41.2]} 44... Qc6+ {[%clk 0:00:12.7]} 45. Qe4 {[%clk 0:00:36.9]}
45... Rfg1+ {[%clk 0:00:12.6]} 46. Kf2 {[%clk 0:00:36.7]} 46... Qc1 {[%clk
0:00:12.6]} 47. Rxg6+ {[%clk 0:00:26]} 47... fxg6 {[%clk 0:00:10.5]} 48. Qe7+
{[%clk 0:00:25.7]} 48... Kg8 {[%clk 0:00:08.2]} 49. Qd8+ {[%clk 0:00:22.1]}
49... Kg7 {[%clk 0:00:08.4]} 50. Re7+ {[%clk 0:00:21.6]} 50... Kf6 {[%clk
0:00:08.9]} 51. Qf8# {[%clk 0:00:20.9]} 1-0

[Event "Early-Titled-Tuesday-Blitz-March-12-2024"]
[Site "Chess.com"]
[Date "2024.03.12"]
[Round "6"]
[White "littlepinkyboy"]
[Black "theoneandonlydaaevik"]
[Result "0-1"]
[WhiteElo "2628"]
[BlackElo "2521"]
[TimeControl "180+1"]
[EndTime "9:06:21 PDT"]
[Termination "theoneandonlydaaevik won on time"]

1. e4 {[%clk 0:02:54]} 1... c6 {[%clk 0:02:58]} 2. d4 {[%clk 0:02:38.6]} 2... d5
{[%clk 0:02:58.1]} 3. e5 {[%clk 0:02:37.4]} 3... Bf5 {[%clk 0:02:57.6]} 4. g4
{[%clk 0:02:38.1]} 4... Be4 {[%clk 0:02:54.8]} 5. f3 {[%clk 0:02:38]} 5... Bg6
{[%clk 0:02:55.4]} 6. e6 {[%clk 0:02:38.2]} 6... fxe6 {[%clk 0:02:43]} 7. h4
{[%clk 0:02:37.3]} 7... h5 {[%clk 0:02:43.6]} 8. Bd3 {[%clk 0:02:33.8]} 8...
Bxd3 {[%clk 0:02:43.7]} 9. Qxd3 {[%clk 0:02:34.4]} 9... Qd6 {[%clk 0:02:44.4]}
10. Qg6+ {[%clk 0:02:32.3]} 10... Kd8 {[%clk 0:02:43.9]} 11. g5 {[%clk
0:02:30.7]} 11... e5 {[%clk 0:02:41.3]} 12. Qf5 {[%clk 0:02:17.4]} 12... e6
{[%clk 0:02:28]} 13. Qxe5 {[%clk 0:02:17.1]} 13... Qxe5+ {[%clk 0:02:28.3]} 14.
dxe5 {[%clk 0:02:18]} 14... Nd7 {[%clk 0:02:28.7]} 15. f4 {[%clk 0:02:17.4]}
15... Ne7 {[%clk 0:02:28.4]} 16. Ne2 {[%clk 0:02:14.9]} 16... Nf5 {[%clk
0:02:28.5]} 17. Nd2 {[%clk 0:02:15.2]} 17... Ne3 {[%clk 0:02:04.5]} 18. Nd4
{[%clk 0:01:55.5]} 18... Ng2+ {[%clk 0:01:40.2]} 19. Kd1 {[%clk 0:01:26.2]}
19... Nxf4 {[%clk 0:01:39.6]} 20. N2f3 {[%clk 0:01:26.2]} 20... Ng6 {[%clk
0:01:32.6]} 21. Nxe6+ {[%clk 0:01:25.9]} 21... Ke7 {[%clk 0:01:32.3]} 22. Ned4
{[%clk 0:01:23.5]} 22... Nc5 {[%clk 0:01:17.8]} 23. Re1 {[%clk 0:01:15.3]} 23...
Ne4 {[%clk 0:01:05.7]} 24. c4 {[%clk 0:01:15.4]} 24... Rd8 {[%clk 0:01:00]} 25.
cxd5 {[%clk 0:01:12.6]} 25... cxd5 {[%clk 0:00:59.2]} 26. Bd2 {[%clk 0:01:13.1]}
26... Ke8 {[%clk 0:00:56.9]} 27. e6 {[%clk 0:00:44.7]} 27... Nxd2 {[%clk
0:00:26]} 28. Nxd2 {[%clk 0:00:45.6]} 28... Bb4 {[%clk 0:00:26.1]} 29. a3 {[%clk
0:00:33.2]} 29... Bc5 {[%clk 0:00:17.2]} 30. Nf5 {[%clk 0:00:32.4]} 30... Ne7
{[%clk 0:00:17]} 31. Ng3 {[%clk 0:00:11.5]} 31... Bf2 {[%clk 0:00:14.1]} 32. Ne2
{[%clk 0:00:10]} 32... Bxe1 {[%clk 0:00:14.2]} 33. Kxe1 {[%clk 0:00:10.5]} 33...
d4 {[%clk 0:00:09.9]} 34. Nf4 {[%clk 0:00:08]} 34... g6 {[%clk 0:00:08.4]} 35.
Ne4 {[%clk 0:00:06.3]} 35... Kf8 {[%clk 0:00:06.8]} 36. Kd2 {[%clk 0:00:03.9]}
36... Kg7 {[%clk 0:00:06.8]} 37. Rf1 {[%clk 0:00:04.7]} 37... Rhf8 {[%clk
0:00:05.6]} 0-1

[Event "Early-Titled-Tuesday-Blitz-March-12-2024"]
[Site "Chess.com"]
[Date "2024.03.12"]
[Round "6"]
[White "karinachess1"]
[Black "kassablanca"]
[Result "0-1"]
[WhiteElo "2601"]
[BlackElo "2778"]
[TimeControl "180+1"]
[EndTime "9:06:25 PDT"]
[Termination "kassablanca won on time"]

1. d4 {[%clk 0:02:55.6]} 1... d5 {[%clk 0:02:59.7]} 2. c4 {[%clk 0:02:55.3]}
2... e6 {[%clk 0:02:59.9]} 3. Nc3 {[%clk 0:02:55.2]} 3... a6 {[%clk 0:03:00.3]}
4. cxd5 {[%clk 0:02:55]} 4... exd5 {[%clk 0:03:01.2]} 5. Bf4 {[%clk 0:02:55.3]}
5... Nf6 {[%clk 0:03:01.1]} 6. e3 {[%clk 0:02:55.8]} 6... Bd6 {[%clk 0:03:01.7]}
7. Bg5 {[%clk 0:02:51.7]} 7... c6 {[%clk 0:02:51.3]} 8. Bd3 {[%clk 0:02:51.1]}
8... O-O {[%clk 0:02:50.8]} 9. Nf3 {[%clk 0:02:50.6]} 9... Be6 {[%clk
0:02:46.4]} 10. O-O {[%clk 0:02:45.8]} 10... Nbd7 {[%clk 0:02:46.5]} 11. Qc2
{[%clk 0:02:41.7]} 11... Qb8 {[%clk 0:02:45.2]} 12. Bh4 {[%clk 0:02:09.5]} 12...
Re8 {[%clk 0:02:40.5]} 13. Rab1 {[%clk 0:01:44.5]} 13... h6 {[%clk 0:02:26.2]}
14. b4 {[%clk 0:01:40.4]} 14... Bg4 {[%clk 0:02:25.3]} 15. Bg3 {[%clk
0:01:40.5]} 15... Bxg3 {[%clk 0:02:22.3]} 16. hxg3 {[%clk 0:01:39.9]} 16... Qd6
{[%clk 0:02:13.1]} 17. a4 {[%clk 0:01:26.6]} 17... Rac8 {[%clk 0:02:12.1]} 18.
Rfe1 {[%clk 0:01:11.2]} 18... Rc7 {[%clk 0:01:59.7]} 19. Nd2 {[%clk 0:01:08]}
19... Nf8 {[%clk 0:01:48.5]} 20. Nf1 {[%clk 0:01:05.5]} 20... Bd7 {[%clk
0:01:39.6]} 21. f3 {[%clk 0:01:00.2]} 21... Ne6 {[%clk 0:01:37.9]} 22. Qf2
{[%clk 0:00:59.7]} 22... Rec8 {[%clk 0:01:24.5]} 23. g4 {[%clk 0:00:59.9]} 23...
a5 {[%clk 0:01:23.5]} 24. bxa5 {[%clk 0:00:54.9]} 24... Ra8 {[%clk 0:01:17.2]}
25. a6 {[%clk 0:00:53.1]} 25... bxa6 {[%clk 0:01:16.9]} 26. Ng3 {[%clk
0:00:37.2]} 26... c5 {[%clk 0:01:14.2]} 27. Nf5 {[%clk 0:00:34.3]} 27... Qf8
{[%clk 0:01:14.8]} 28. dxc5 {[%clk 0:00:28]} 28... Nxc5 {[%clk 0:01:12.9]} 29.
Qd2 {[%clk 0:00:25.6]} 29... Nxd3 {[%clk 0:01:01.9]} 30. Qxd3 {[%clk 0:00:26.5]}
30... Bxf5 {[%clk 0:01:01.8]} 31. gxf5 {[%clk 0:00:25.7]} 31... Rc5 {[%clk
0:00:56.9]} 32. Ne2 {[%clk 0:00:21.7]} 32... Qe8 {[%clk 0:00:53.1]} 33. Rb4
{[%clk 0:00:14.1]} 33... Rac8 {[%clk 0:00:52.5]} 34. Nf4 {[%clk 0:00:10.8]}
34... Rc3 {[%clk 0:00:50.5]} 35. Qd4 {[%clk 0:00:09.6]} 35... R3c4 {[%clk
0:00:50.1]} 36. Qd2 {[%clk 0:00:07.6]} 36... Rxb4 {[%clk 0:00:45.6]} 37. Qxb4
{[%clk 0:00:08.5]} 37... Rc4 {[%clk 0:00:45.9]} 38. Qd2 {[%clk 0:00:07.1]} 38...
Qc6 {[%clk 0:00:45]} 39. Rd1 {[%clk 0:00:06.4]} 39... Qc5 {[%clk 0:00:39.8]} 40.
Kh2 {[%clk 0:00:04.7]} 40... Rxa4 {[%clk 0:00:36.4]} 41. Nxd5 {[%clk 0:00:02.8]}
41... Nxd5 {[%clk 0:00:36]} 42. Qxd5 {[%clk 0:00:03.7]} 42... Qxe3 {[%clk
0:00:35.1]} 43. Qd8+ {[%clk 0:00:04]} 43... Kh7 {[%clk 0:00:35.2]} 44. Qd3
{[%clk 0:00:04.9]} 44... Qxd3 {[%clk 0:00:19]} 45. Rxd3 {[%clk 0:00:05.8]} 45...
h5 {[%clk 0:00:18.1]} 46. g3 {[%clk 0:00:04.1]} 46... f6 {[%clk 0:00:18.1]} 47.
Kh3 {[%clk 0:00:03.6]} 47... Kh6 {[%clk 0:00:18.7]} 48. Rd7 {[%clk 0:00:03.4]}
48... Ra3 {[%clk 0:00:18.5]} 49. Kg2 {[%clk 0:00:03.1]} 49... Ra2+ {[%clk
0:00:18.3]} 50. Kg1 {[%clk 0:00:03.7]} 50... a5 {[%clk 0:00:18.2]} 51. Ra7
{[%clk 0:00:03.9]} 51... a4 {[%clk 0:00:18.3]} 52. Kf1 {[%clk 0:00:02.8]} 52...
a3 {[%clk 0:00:18.7]} 53. Kg1 {[%clk 0:00:03.4]} 53... Kg5 {[%clk 0:00:18.3]}
54. Rxg7+ {[%clk 0:00:02.9]} 54... Kxf5 {[%clk 0:00:19.1]} 55. Ra7 {[%clk
0:00:02.4]} 55... Ke5 {[%clk 0:00:18.4]} 56. Ra5+ {[%clk 0:00:01.8]} 56... Kd4
{[%clk 0:00:18.6]} 57. Kf1 {[%clk 0:00:01.1]} 57... Ke3 {[%clk 0:00:18.3]} 0-1

[Event "Early-Titled-Tuesday-Blitz-March-12-2024"]
[Site "Chess.com"]
[Date "2024.03.12"]
[Round "6"]
[White "Vladimir_Zakhartsov"]
[Black "manitodeplomo"]
[Result "1-0"]
[WhiteElo "2859"]
[BlackElo "2727"]
[TimeControl "180+1"]
[EndTime "9:06:26 PDT"]
[Termination "Vladimir_Zakhartsov won by resignation"]

1. d4 {[%clk 0:02:57.1]} 1... Nf6 {[%clk 0:02:56.2]} 2. c4 {[%clk 0:02:57.3]}
2... e6 {[%clk 0:02:53.4]} 3. Nf3 {[%clk 0:02:57.8]} 3... b6 {[%clk 0:02:52.9]}
4. a3 {[%clk 0:02:57.4]} 4... Bb7 {[%clk 0:02:51.8]} 5. Nc3 {[%clk 0:02:57.6]}
5... d5 {[%clk 0:02:45.6]} 6. cxd5 {[%clk 0:02:57.5]} 6... Nxd5 {[%clk
0:02:45.4]} 7. Qc2 {[%clk 0:02:57.9]} 7... Nd7 {[%clk 0:02:25.5]} 8. e4 {[%clk
0:02:54.5]} 8... Nxc3 {[%clk 0:02:24.8]} 9. bxc3 {[%clk 0:02:55.4]} 9... c5
{[%clk 0:02:21.8]} 10. Bf4 {[%clk 0:02:55.3]} 10... cxd4 {[%clk 0:02:21.2]} 11.
cxd4 {[%clk 0:02:56.2]} 11... Rc8 {[%clk 0:02:21.1]} 12. Qb3 {[%clk 0:02:55.4]}
12... Bxe4 {[%clk 0:02:11.7]} 13. Ba6 {[%clk 0:02:54.9]} 13... Bd5 {[%clk
0:01:42.8]} 14. Qa4 {[%clk 0:02:54.6]} 14... Rc3 {[%clk 0:01:36.2]} 15. Ne5
{[%clk 0:02:41.9]} 15... f6 {[%clk 0:01:32.6]} 16. Bd2 {[%clk 0:02:28.6]} 16...
Rc7 {[%clk 0:01:30.2]} 17. Nd3 {[%clk 0:02:26.8]} 17... Bd6 {[%clk 0:01:25.2]}
18. Nf4 {[%clk 0:02:19.4]} 18... O-O {[%clk 0:00:55.2]} 19. Nxd5 {[%clk
0:02:18]} 19... exd5 {[%clk 0:00:56.1]} 20. O-O {[%clk 0:02:13.8]} 20... Nb8
{[%clk 0:00:51.3]} 21. Be2 {[%clk 0:02:12.3]} 21... Qd7 {[%clk 0:00:49]} 22. Qb3
{[%clk 0:02:11.1]} 22... Qf7 {[%clk 0:00:48.9]} 23. Bf3 {[%clk 0:02:10.6]} 23...
Rc4 {[%clk 0:00:47.5]} 24. Be3 {[%clk 0:02:09.6]} 24... Rfc8 {[%clk 0:00:46.9]}
25. a4 {[%clk 0:02:09.6]} 25... Nc6 {[%clk 0:00:44.7]} 26. Qb5 {[%clk
0:02:08.4]} 26... Ne7 {[%clk 0:00:34.1]} 27. a5 {[%clk 0:02:08.8]} 27... Bc7
{[%clk 0:00:24.8]} 28. a6 {[%clk 0:01:50]} 28... Qe6 {[%clk 0:00:21.7]} 29. h3
{[%clk 0:01:47.8]} 29... Qc6 {[%clk 0:00:21.4]} 30. Qb1 {[%clk 0:01:28.1]} 30...
b5 {[%clk 0:00:20.3]} 31. Be2 {[%clk 0:01:25.8]} 31... Bb6 {[%clk 0:00:19.7]}
32. Bxc4 {[%clk 0:01:23.7]} 32... dxc4 {[%clk 0:00:20.6]} 33. d5 {[%clk
0:01:16.6]} 33... Nxd5 {[%clk 0:00:20]} 34. Bxb6 {[%clk 0:01:17.2]} 34... Nxb6
{[%clk 0:00:18.4]} 35. Ra5 {[%clk 0:01:16]} 35... c3 {[%clk 0:00:09.4]} 36. Qxb5
{[%clk 0:01:07.9]} 36... Qxb5 {[%clk 0:00:08.2]} 37. Rxb5 {[%clk 0:01:08]} 37...
Kf7 {[%clk 0:00:07.9]} 38. Rc1 {[%clk 0:01:06.8]} 38... Ke6 {[%clk 0:00:08.1]}
39. Kf1 {[%clk 0:01:05.4]} 39... Rc6 {[%clk 0:00:07.7]} 40. Ke2 {[%clk
0:00:55.2]} 40... Nd5 {[%clk 0:00:07.8]} 41. Ra1 {[%clk 0:00:49.5]} 41... c2
{[%clk 0:00:04.7]} 42. Kd2 {[%clk 0:00:48.5]} 42... Nf4 {[%clk 0:00:03.1]} 43.
g3 {[%clk 0:00:35.3]} 43... Nxh3 {[%clk 0:00:02.7]} 44. f4 {[%clk 0:00:24.7]}
44... f5 {[%clk 0:00:02.3]} 45. Rb2 {[%clk 0:00:22.6]} 45... Nf2 {[%clk
0:00:01.8]} 46. Rxc2 {[%clk 0:00:20.8]} 46... Ne4+ {[%clk 0:00:02.7]} 47. Kc1
{[%clk 0:00:20.9]} 47... Rxc2+ {[%clk 0:00:02.9]} 48. Kxc2 {[%clk 0:00:21.8]}
48... Nxg3 {[%clk 0:00:03.4]} 49. Rb1 {[%clk 0:00:21.5]} 49... Nh5 {[%clk
0:00:03.3]} 50. Rb7 {[%clk 0:00:21.2]} 50... Nxf4 {[%clk 0:00:04.2]} 51. Rxa7
{[%clk 0:00:18.9]} 51... Nd5 {[%clk 0:00:05.1]} 52. Kb3 {[%clk 0:00:17.6]} 52...
Kd6 {[%clk 0:00:04.1]} 53. Rxg7 {[%clk 0:00:17.4]} 53... Nc7 {[%clk 0:00:03.4]}
54. a7 {[%clk 0:00:16.7]} 1-0

[Event "Early-Titled-Tuesday-Blitz-March-12-2024"]
[Site "Chess.com"]
[Date "2024.03.12"]
[Round "6"]
[White "Polish_fighter3000"]
[Black "FaustinoOro"]
[Result "1-0"]
[WhiteElo "3121"]
[BlackElo "2905"]
[TimeControl "180+1"]
[EndTime "9:06:28 PDT"]
[Termination "Polish_fighter3000 won by resignation"]

1. e4 {[%clk 0:03:00.9]} 1... e5 {[%clk 0:02:59]} 2. Nf3 {[%clk 0:02:59.3]} 2...
Nc6 {[%clk 0:02:59.2]} 3. Nc3 {[%clk 0:02:57.7]} 3... Nf6 {[%clk 0:02:58.7]} 4.
Bb5 {[%clk 0:02:58.4]} 4... Bb4 {[%clk 0:02:55]} 5. Bxc6 {[%clk 0:02:53.8]} 5...
bxc6 {[%clk 0:02:50.4]} 6. Nxe5 {[%clk 0:02:46.2]} 6... Qe7 {[%clk 0:02:33]} 7.
Nd3 {[%clk 0:02:42.7]} 7... Bxc3 {[%clk 0:02:29.1]} 8. dxc3 {[%clk 0:02:43.6]}
8... Qxe4+ {[%clk 0:02:29.2]} 9. Qe2 {[%clk 0:02:44]} 9... Qxe2+ {[%clk
0:02:28.9]} 10. Kxe2 {[%clk 0:02:44.9]} 10... d6 {[%clk 0:02:18.4]} 11. f3
{[%clk 0:02:41.1]} 11... Bf5 {[%clk 0:02:02.7]} 12. Bg5 {[%clk 0:02:37.4]} 12...
Ng8 {[%clk 0:01:47.9]} 13. Rhe1 {[%clk 0:02:09.8]} 13... f6 {[%clk 0:01:45.4]}
14. Be3 {[%clk 0:01:56.9]} 14... Kd7 {[%clk 0:01:41.1]} 15. c4 {[%clk
0:01:52.6]} 15... c5 {[%clk 0:01:28.5]} 16. Rad1 {[%clk 0:01:52.1]} 16... Kc6
{[%clk 0:01:24.5]} 17. Kd2 {[%clk 0:01:49.9]} 17... Re8 {[%clk 0:01:16.7]} 18.
Bxc5 {[%clk 0:01:12.6]} 18... Rxe1 {[%clk 0:01:10.5]} 19. Rxe1 {[%clk
0:01:13.5]} 19... dxc5 {[%clk 0:01:06.5]} 20. Re8 {[%clk 0:01:13.3]} 20... g5
{[%clk 0:00:46.4]} 21. Kc3 {[%clk 0:01:02.3]} 21... Bg6 {[%clk 0:00:38.5]} 22.
Rd8 {[%clk 0:00:57.4]} 22... h5 {[%clk 0:00:32.9]} 23. a4 {[%clk 0:00:33.4]}
23... Bf7 {[%clk 0:00:28.4]} 24. b4 {[%clk 0:00:23.3]} 24... cxb4+ {[%clk
0:00:21.8]} 25. Nxb4+ {[%clk 0:00:24.2]} 25... Kb7 {[%clk 0:00:22.5]} 26. a5
{[%clk 0:00:22.5]} 26... a6 {[%clk 0:00:20.7]} 27. c5 {[%clk 0:00:21.8]} 27...
Rh7 {[%clk 0:00:13.7]} 28. c6+ {[%clk 0:00:20.4]} 28... Ka7 {[%clk 0:00:13.9]}
29. Rd7 {[%clk 0:00:13.8]} 29... Bg6 {[%clk 0:00:13.5]} 30. Nd5 {[%clk
0:00:13.8]} 30... Bf5 {[%clk 0:00:13.7]} 31. Nb6 {[%clk 0:00:04.9]} 31... h4
{[%clk 0:00:04]} 32. Kd4 {[%clk 0:00:04.8]} 32... h3 {[%clk 0:00:03.8]} 33. g4
{[%clk 0:00:04.8]} 33... Be6 {[%clk 0:00:04.3]} 34. c4 {[%clk 0:00:04.9]} 34...
Bxd7 {[%clk 0:00:01.6]} 35. cxd7 {[%clk 0:00:05.8]} 35... Rxd7+ {[%clk
0:00:01.9]} 36. Nxd7 {[%clk 0:00:06.6]} 36... Kb7 {[%clk 0:00:02.1]} 37. Kd5
{[%clk 0:00:06.9]} 37... Ne7+ {[%clk 0:00:01.7]} 38. Ke6 {[%clk 0:00:06.3]}
38... Nc6 {[%clk 0:00:02.4]} 39. Nc5+ {[%clk 0:00:06.6]} 39... Ka7 {[%clk
0:00:02.5]} 40. Kxf6 {[%clk 0:00:04.3]} 40... Nd4 {[%clk 0:00:03.1]} 41. Kxg5
{[%clk 0:00:03.3]} 41... Nxf3+ {[%clk 0:00:03.7]} 42. Kf4 {[%clk 0:00:03.5]}
42... Nxh2 {[%clk 0:00:04.6]} 43. g5 {[%clk 0:00:03.8]} 43... Ng4 {[%clk
0:00:04]} 44. Ne4 {[%clk 0:00:02.8]} 44... h2 {[%clk 0:00:04]} 45. Ng3 {[%clk
0:00:03.3]} 45... Nf2 {[%clk 0:00:04.7]} 46. g6 {[%clk 0:00:03.4]} 46... Nd3+
{[%clk 0:00:03.9]} 47. Kf5 {[%clk 0:00:03.7]} 47... Nc1 {[%clk 0:00:03.1]} 48.
g7 {[%clk 0:00:03.9]} 48... Ne2 {[%clk 0:00:03.8]} 49. Nh1 {[%clk 0:00:04.5]}
49... Nd4+ {[%clk 0:00:03.7]} 50. Kf6 {[%clk 0:00:05]} 50... Nc6 {[%clk
0:00:04.1]} 51. g8=Q {[%clk 0:00:05.5]} 51... Nxa5 {[%clk 0:00:05]} 52. Qg3
{[%clk 0:00:05.6]} 1-0